fUSD/lending_fUSD_20240222
["ID","MTS","AMOUNT","RATE_DAILY","PERIOD"]
[314843033,1708584659742,-500.0,0.0003589,2]
[314843034,1708584659751,-500.0,0.0003589,2]
[314843035,1708584659762,-500.0,0.0003589,2]
[314843036,1708584659771,-784.07,0.0003589,2]
[314843037,1708584659780,-619.51,0.0003589,2]
[314843038,1708584659790,-682.22,0.0003589,2]
[314843039,1708584659799,-500.0,0.0003589,2]
[314843040,1708584659809,-500.0,0.0003589,2]
[314843041,1708584659818,-522.46395841,0.0003589,2]
[314843042,1708584659827,-574.57,0.0003589,2]
[314843043,1708584659837,-500.0,0.0003589,2]
[314843044,1708584659846,-500.0,0.0003589,2]
[314843045,1708584659855,-500.0,0.0003589,2]
[314843046,1708584659864,-738.83,0.0003589,2]
[314843047,1708584659873,-640.71,0.0003589,2]
[314843048,1708584659882,-527.94820203,0.0003589,2]
[314843049,1708584659891,-500.0,0.0003589,2]
[314843050,1708584659901,-1233.47,0.0003589,2]
[314843051,1708584659910,-500.0,0.0003589,2]
[314843052,1708584659920,-521.28855354,0.0003589,2]
[314843053,1708584659929,-500.0,0.0003589,2]
[314843054,1708584659939,-500.0,0.0003589,2]
[314843055,1708584659948,-829.65,0.0003589,2]
[314843056,1708584659958,-743.49,0.0003589,2]
[314843057,1708584659967,-506.04498676,0.0003589,2]
[314843058,1708584659976,-673.7,0.0003589,2]
[314843059,1708584659985,-500.0,0.0003589,2]
[314843060,1708584659994,-293.11644371,0.0003589,2]
[314843061,1708584660005,-522.66,0.0003589,2]
[314843062,1708584660015,-500.0,0.0003589,2]
[314843063,1708584660024,-500.0,0.0003589,2]
[314843064,1708584660034,-500.0,0.0003589,2]
[314843065,1708584660043,-500.0,0.0003589,2]
[314843066,1708584660053,-500.0,0.0003589,2]
[314843067,1708584660062,-523.08340776,0.0003589,2]
[314843068,1708584660071,-500.0,0.0003589,2]
[314843069,1708584660081,-500.0,0.0003589,2]
[314843070,1708584660092,-500.0,0.0003589,2]
[314843071,1708584660102,-524.45,0.0003589,2]
[314843072,1708584660111,-676.86,0.0003589,2]
[314843073,1708584660120,-500.0,0.0003589,2]
[314843074,1708584660129,-500.0,0.0003589,2]
[314843075,1708584660139,-504.2406197,0.0003589,2]
[314843076,1708584660149,-500.0,0.0003589,2]
[314843077,1708584660159,-592.0,0.0003589,2]
[314843078,1708584660168,-500.0,0.0003589,2]
[314843079,1708584660177,-500.0,0.0003589,2]
[314843080,1708584660186,-500.0,0.0003589,2]
[314843081,1708584660195,-507.77110263,0.0003589,2]
[314843082,1708584660204,-1373.3,0.0003589,2]
[314843083,1708584660213,-1187.08,0.0003589,2]
[314843084,1708584660222,-636.49,0.0003589,2]
[314843085,1708584660232,-500.0,0.0003589,2]
[314843086,1708584660241,-1107.36,0.0003589,2]
[314843087,1708584660250,-500.0,0.0003589,2]
[314843088,1708584660261,-814.22,0.0003589,2]
[314843089,1708584660271,-500.0,0.0003589,2]
[314843090,1708584660280,-557.99299764,0.0003589,2]
[314843091,1708584660290,-500.0,0.0003589,2]
[314843092,1708584660299,-541.19,0.0003589,2]
[314843093,1708584660309,-541.25,0.0003589,2]
[314843094,1708584660318,-824.02,0.0003589,2]
[314843095,1708584660328,-500.0,0.0003589,2]
[314843096,1708584660337,-500.0,0.0003589,2]
[314843097,1708584660346,-157.90354865,0.0003589,2]
[314843098,1708584660356,-500.0,0.0003589,2]
[314843099,1708584660365,-738.36,0.0003589,2]
[314843100,1708584660374,-503.23,0.0003589,2]
[314843101,1708584660383,-500.0,0.0003589,2]
[314843102,1708584660393,-281.36334341,0.0003589,2]
[314843103,1708584660402,-599.54,0.0003589,2]
[314843104,1708584660411,-622.26,0.0003589,2]
[314843105,1708584660421,-500.0,0.0003589,2]
[314843106,1708584660431,-500.0,0.0003589,2]
[314843107,1708584660440,-759.9,0.0003589,2]
[314843108,1708584660450,-500.0,0.0003589,2]
[314843109,1708584660459,-500.0,0.0003589,2]
[314843110,1708584660469,-500.0,0.0003589,2]
[314843111,1708584660479,-672.62,0.0003589,2]
[314843112,1708584660489,-558.43,0.0003589,2]
[314843113,1708584660498,-500.0,0.0003589,2]
[314843114,1708584660509,-500.0,0.0003589,2]
[314843115,1708584660518,-653.84,0.0003589,2]
[314843116,1708584660527,-500.0,0.0003589,2]
[314843117,1708584660537,-500.0,0.0003589,2]
[314843118,1708584660547,-512.27158611,0.0003589,2]
[314843119,1708584660559,-500.0,0.0003589,2]
[314843120,1708584660570,-500.0,0.0003589,2]
[314843121,1708584660579,-261.02550805,0.0003589,2]
[314843122,1708584660588,-500.0,0.0003589,2]
[314843123,1708584660599,-670.47,0.0003589,2]
[314843124,1708584660608,-500.0,0.0003589,2]
[314843125,1708584660618,-500.0,0.0003589,2]
[314843126,1708584660627,-500.0,0.0003589,2]
[314843127,1708584660639,-500.0,0.0003589,2]
[314843128,1708584660649,-500.0,0.0003589,2]
[314843129,1708584660658,-1348.42,0.0003589,2]
[314843130,1708584660668,-820.56,0.0003589,2]
[314843131,1708584660678,-500.0,0.0003589,2]
[314843132,1708584660687,-731.55,0.0003589,2]
[314843133,1708584660696,-500.0,0.0003589,2]
[314843134,1708584660707,-563.37,0.0003589,2]
[314843135,1708584660716,-500.0,0.0003589,2]
[314843136,1708584660726,-536.33,0.0003589,2]
[314843137,1708584660735,-500.0,0.0003589,2]
[314843138,1708584660745,-500.0,0.0003589,2]
[314843139,1708584660756,-885.26,0.0003589,2]
[314843140,1708584660765,-801.15,0.0003589,2]
[314843141,1708584660775,-500.0,0.0003589,2]
[314843142,1708584660785,-500.0,0.0003589,2]
[314843143,1708584660794,-500.0,0.0003589,2]
[314843144,1708584660803,-500.0,0.0003589,2]
[314843145,1708584660813,-509.75681769,0.0003589,2]
[314843146,1708584660822,-500.0,0.0003589,2]
[314843147,1708584660832,-500.0,0.0003589,2]
[314843148,1708584660841,-601.07,0.0003589,2]
[314843149,1708584660850,-500.0,0.0003589,2]
[314843150,1708584660859,-500.0,0.0003589,2]
[314843151,1708584660868,-1354.25,0.0003589,2]
[314843152,1708584660877,-500.0,0.0003589,2]
[314843153,1708584660887,-174.04227003,0.0003589,2]
[314843154,1708584660897,-250.0,0.0003589,2]
[314843155,1708584660906,-727.93,0.0003589,2]
[314843156,1708584660915,-500.0,0.0003589,2]
[314843157,1708584660924,-500.0,0.0003589,2]
[314843158,1708584660934,-500.0,0.0003589,2]
[314843159,1708584660943,-500.0,0.0003589,2]
[314843160,1708584660952,-2008.23,0.0003589,2]
[314843161,1708584660961,-517.17953532,0.0003589,2]
[314843162,1708584660970,-500.0,0.0003589,2]
[314843163,1708584660979,-581.91,0.0003589,2]
[314843164,1708584660988,-500.0,0.0003589,2]
[314843165,1708584660998,-500.0,0.0003589,2]
[314843166,1708584661009,-500.0,0.0003589,2]
[314843167,1708584661018,-432.96733775,0.0003589,2]
[314843168,1708584661027,-760.55,0.0003589,2]
[314843169,1708584661036,-500.0,0.0003589,2]
[314843170,1708584661045,-500.0,0.0003589,2]
[314843171,1708584661054,-500.0,0.0003589,2]
[314843172,1708584661063,-785.84,0.0003589,2]
[314843173,1708584661072,-500.0,0.0003589,2]
[314843174,1708584661081,-524.51620946,0.0003589,2]
[314843175,1708584661090,-500.0,0.0003589,2]
[314843176,1708584661099,-500.0,0.0003589,2]
[314843177,1708584661108,-1040.9,0.0003589,2]
[314843178,1708584661118,-500.0,0.0003589,2]
[314843179,1708584661127,-625.64,0.0003589,2]
[314843180,1708584661136,-500.0,0.0003589,2]
[314843181,1708584661144,-500.0,0.0003589,2]
[314843182,1708584661153,-545.67,0.0003589,2]
[314843183,1708584661162,-500.0,0.0003589,2]
[314843184,1708584661172,-500.0,0.0003589,2]
[314843185,1708584661180,-500.0,0.0003589,2]
[314843186,1708584661190,-500.0,0.0003589,2]
[314843187,1708584661199,-500.0,0.0003589,2]
[314843188,1708584661208,-500.0,0.0003589,2]
[314843189,1708584661217,-1000.0,0.0003589,7]
[314843190,1708584661226,-500.0,0.0003589,2]
[314843191,1708584661235,-663.53,0.0003589,2]
[314843192,1708584661244,-500.0,0.0003589,2]
[314843193,1708584661253,-508.97540703,0.0003589,2]
[314843194,1708584661264,-500.0,0.0003589,2]
[314843195,1708584661273,-1158.31,0.0003589,2]
[314843196,1708584661282,-500.0,0.0003589,2]
[314843197,1708584661291,-784.63,0.0003589,2]
[314843198,1708584661300,-776.69,0.0003589,2]
[314843199,1708584661309,-500.0,0.0003589,2]
[314843200,1708584661318,-628.04,0.0003589,2]
[314843201,1708584661327,-825.89,0.0003589,2]
[314843202,1708584661336,-558.66,0.0003589,2]
[314843203,1708584661345,-500.0,0.0003589,2]
[314843204,1708584661354,-500.0,0.0003589,2]
[314843205,1708584661363,-1131.63,0.0003589,2]
[314843206,1708584661372,-334.82762383,0.0003589,2]
[314843207,1708584661382,-500.0,0.0003589,2]
[314843208,1708584661391,-500.0,0.0003589,2]
[314843209,1708584661400,-500.0,0.0003589,2]
[314843210,1708584661409,-500.0,0.0003589,2]
[314843211,1708584661418,-625.77,0.0003589,2]
[314843212,1708584661427,-500.0,0.0003589,2]
[314843213,1708584661437,-500.0,0.0003589,2]
[314843214,1708584661447,-1512.71,0.0003589,2]
[314843215,1708584661456,-500.0,0.0003589,2]
[314843216,1708584661465,-500.0,0.0003589,2]
[314843217,1708584661475,-537.3747195,0.0003589,2]
[314843218,1708584661484,-500.0,0.0003589,2]
[314843219,1708584661493,-212.16392658,0.0003589,2]
[314843220,1708584661502,-775.95,0.0003589,2]
[314843221,1708584661514,-500.0,0.0003589,2]
[314843222,1708584661524,-500.0,0.0003589,2]
[314843223,1708584661533,-500.0,0.0003589,2]
[314843224,1708584661545,-500.0,0.0003589,2]
[314843225,1708584661561,-500.0,0.0003589,2]
[314843226,1708584661571,-614.4,0.0003589,2]
[314843227,1708584661581,-522.7,0.0003589,2]
[314843228,1708584661591,-500.0,0.0003589,2]
[314843229,1708584661600,-500.0,0.0003589,2]
[314843230,1708584661610,-1000.0,0.0003589,7]
[314843231,1708584661619,-1000.0,0.0003589,7]
[314843232,1708584661631,-832.77,0.0003589,2]
[314843233,1708584661641,-509.73787555,0.0003589,2]
[314843234,1708584661650,-668.15,0.0003589,2]
[314843235,1708584661659,-500.0,0.0003589,2]
[314843236,1708584661668,-500.0,0.0003589,2]
[314843237,1708584661678,-500.0,0.0003589,2]
[314843238,1708584661687,-500.0,0.0003589,2]
[314843239,1708584661697,-500.0,0.0003589,2]
[314843240,1708584661706,-500.0,0.0003589,2]
[314843241,1708584661715,-500.0,0.0003589,2]
[314843242,1708584661725,-500.0,0.0003589,2]
[314843243,1708584661734,-500.0,0.0003589,2]
[314843244,1708584661743,-876.64,0.0003589,2]
[314843245,1708584661753,-500.0,0.0003589,2]
[314843246,1708584661764,-500.0,0.0003589,2]
[314843247,1708584661773,-500.0,0.0003589,2]
[314843248,1708584661783,-500.0,0.0003589,2]
[314843249,1708584661792,-542.39,0.0003589,2]
[314843250,1708584661801,-500.0,0.0003589,2]
[314843251,1708584661810,-500.0,0.0003589,2]
[314843252,1708584661820,-500.0,0.0003589,2]
[314843253,1708584661829,-500.0,0.0003589,2]
[314843254,1708584661839,-500.0,0.0003589,2]
[314843255,1708584661848,-500.0,0.0003589,2]
[314843256,1708584661858,-500.0,0.0003589,2]
[314843257,1708584661868,-500.0,0.0003589,2]
[314843258,1708584661877,-993.12,0.0003589,2]
[314843259,1708584661886,-517.9,0.0003589,2]
[314843260,1708584661895,-500.0,0.0003589,2]
[314843261,1708584661905,-500.0,0.0003589,2]
[314843262,1708584661914,-795.62,0.0003589,2]
[314843263,1708584661923,-500.0,0.0003589,2]
[314843264,1708584661933,-1437.34,0.0003589,2]
[314843265,1708584661942,-512.10422333,0.0003589,2]
[314843266,1708584661952,-221.52520266,0.0003589,2]
[314843267,1708584661961,-500.0,0.0003589,2]
[314843268,1708584661970,-500.0,0.0003589,2]
[314843269,1708584661979,-500.0,0.0003589,2]
[314843270,1708584661988,-500.0,0.0003589,2]
[314843271,1708584661998,-500.0,0.0003589,2]
[314843272,1708584662009,-500.0,0.0003589,2]
[314843273,1708584662018,-500.0,0.0003589,2]
[314843274,1708584662029,-507.00487745,0.0003589,2]
[314843275,1708584662041,-500.0,0.0003589,2]
[314843276,1708584662061,-500.0,0.0003589,2]
[314843277,1708584662081,-1149.78,0.0003589,2]
[314843278,1708584662099,-500.0,0.0003589,2]
[314843279,1708584662109,-565.77,0.0003589,2]
[314843280,1708584662118,-500.0,0.0003589,2]
[314843281,1708584662128,-808.29,0.0003589,2]
[314843282,1708584662139,-500.0,0.0003589,2]
[314843283,1708584662148,-500.0,0.0003589,2]
[314843284,1708584662158,-500.0,0.0003589,2]
[314843285,1708584662167,-500.0,0.0003589,2]
[314843286,1708584662177,-691.58,0.0003589,2]
[314843287,1708584662187,-500.0,0.0003589,2]
[314843288,1708584662196,-500.0,0.0003589,2]
[314843289,1708584662206,-500.0,0.0003589,2]
[314843290,1708584662216,-1505.21,0.0003589,2]
[314843291,1708584662226,-500.0,0.0003589,2]
[314843292,1708584662236,-500.0,0.0003589,2]
[314843293,1708584662246,-500.0,0.0003589,2]
[314843294,1708584662256,-916.36,0.0003589,2]
[314843295,1708584662266,-1195.16,0.0003589,2]
[314843296,1708584662275,-500.0,0.0003589,2]
[314843297,1708584662285,-500.0,0.0003589,2]
[314843298,1708584662294,-500.0,0.0003589,2]
[314843299,1708584662304,-500.0,0.0003589,2]
[314843300,1708584662314,-500.0,0.0003589,2]
[314843301,1708584662323,-838.3,0.0003589,2]
[314843302,1708584662332,-500.0,0.0003589,2]
[314843303,1708584662342,-557.7,0.0003589,2]
[314843304,1708584662351,-500.0,0.0003589,2]
[314843305,1708584662360,-500.0,0.0003589,2]
[314843306,1708584662369,-500.0,0.0003589,2]
[314843307,1708584662378,-500.0,0.0003589,2]
[314843308,1708584662388,-876.9,0.0003589,2]
[314843309,1708584662397,-500.0,0.0003589,2]
[314843310,1708584662407,-985.84,0.0003589,2]
[314843311,1708584662416,-500.0,0.0003589,2]
[314843312,1708584662427,-500.0,0.0003589,2]
[314843313,1708584662436,-643.5,0.0003589,2]
[314843314,1708584662446,-500.0,0.0003589,2]
[314843315,1708584662456,-764.96,0.0003589,2]
[314843316,1708584662465,-500.0,0.0003589,2]
[314843317,1708584662476,-500.0,0.0003589,2]
[314843318,1708584662487,-500.0,0.0003589,2]
[314843319,1708584662497,-500.0,0.0003589,2]
[314843320,1708584662508,-500.0,0.0003589,2]
[314843321,1708584662518,-500.0,0.0003589,2]
[314843322,1708584662529,-500.0,0.0003589,2]
[314843323,1708584662539,-1442.34,0.0003589,2]
[314843324,1708584662551,-500.0,0.0003589,2]
[314843325,1708584662564,-567.48,0.0003589,2]
[314843326,1708584662575,-544.22442429,0.0003589,2]
[314843327,1708584662585,-500.0,0.0003589,2]
[314843328,1708584662596,-500.0,0.0003589,2]
[314843329,1708584662605,-500.0,0.0003589,2]
[314843330,1708584662615,-1043.98,0.0003589,2]
[314843331,1708584662624,-1117.0,0.0003589,2]
[314843332,1708584662634,-500.0,0.0003589,2]
[314843333,1708584662644,-500.0,0.0003589,2]
[314843334,1708584662653,-500.0,0.0003589,2]
[314843335,1708584662663,-500.0,0.0003589,2]
[314843336,1708584662672,-590.49,0.0003589,2]
[314843337,1708584662681,-500.0,0.0003589,2]
[314843338,1708584662691,-500.0,0.0003589,2]
[314843339,1708584662815,-500.0,0.0003589,2]
[314843340,1708584662825,-690.67,0.0003589,2]
[314843341,1708584662834,-500.0,0.0003589,2]
[314843342,1708584662843,-502.84988466,0.0003589,2]
[314843343,1708584662853,-500.0,0.0003589,2]
[314843344,1708584662862,-695.62,0.0003589,2]
[314843345,1708584662871,-500.0,0.0003589,2]
[314843346,1708584662881,-500.0,0.0003589,2]
[314843347,1708584662891,-500.0,0.0003589,2]
[314843348,1708584662901,-500.0,0.0003589,2]
[314843349,1708584662911,-500.0,0.0003589,2]
[314843350,1708584662921,-512.58,0.0003589,2]
[314843351,1708584662931,-500.0,0.0003589,2]
[314843352,1708584662941,-500.0,0.0003589,2]
[314843353,1708584662951,-1200.12,0.0003589,2]
[314843354,1708584662961,-500.0,0.0003589,2]
[314843355,1708584662970,-704.97,0.0003589,2]
[314843356,1708584662981,-500.0,0.0003589,2]
[314843357,1708584662991,-500.0,0.0003589,2]
[314843358,1708584663001,-500.0,0.0003589,2]
[314843359,1708584663011,-624.35,0.0003589,2]
[314843360,1708584663020,-500.0,0.0003589,2]
[314843361,1708584663030,-500.0,0.0003589,2]
[314843362,1708584663040,-1005.91,0.0003589,2]
[314843363,1708584663049,-1242.08,0.0003589,2]
[314843364,1708584663059,-500.0,0.0003589,2]
[314843365,1708584663068,-500.0,0.0003589,2]
[314843366,1708584663078,-506.25582875,0.0003589,2]
[314843367,1708584663087,-500.0,0.0003589,2]
[314843368,1708584663096,-500.0,0.0003589,2]
[314843369,1708584663106,-2492.29,0.0003589,2]
[314843370,1708584663115,-500.0,0.0003589,2]
[314843371,1708584663125,-500.0,0.0003589,2]
[314843372,1708584663134,-500.0,0.0003589,2]
[314843373,1708584663143,-500.0,0.0003589,2]
[314843374,1708584663153,-1099.48,0.0003589,2]
[314843375,1708584663163,-500.0,0.0003589,2]
[314843376,1708584663172,-386.51924642,0.0003589,2]
[314843377,1708584663182,-1051.05,0.0003589,2]
[314843378,1708584663191,-500.0,0.0003589,2]
[314843379,1708584663201,-500.0,0.0003589,2]
[314843380,1708584663211,-500.0,0.0003589,2]
[314843381,1708584663221,-751.03,0.0003589,2]
[314843382,1708584663231,-500.0,0.0003589,2]
[314843383,1708584663241,-690.5,0.0003589,2]
[314843384,1708584663251,-500.0,0.0003589,2]
[314843385,1708584663263,-500.0,0.0003589,2]
[314843386,1708584663273,-320.81182658,0.0003589,2]
[314843387,1708584663282,-2547.7,0.0003589,2]
[314843388,1708584663290,-500.0,0.0003589,2]
[314843389,1708584663300,-500.0,0.0003589,2]
[314843390,1708584663309,-1317.89,0.0003589,2]
[314843391,1708584663318,-500.0,0.0003589,2]
[314843392,1708584663329,-500.0,0.0003589,2]
[314843393,1708584663339,-857.38,0.0003589,2]
[314843394,1708584663348,-500.0,0.0003589,2]
[314843395,1708584663357,-965.92,0.0003589,2]
[314843396,1708584663366,-914.91,0.0003589,2]
[314843397,1708584663375,-515.6557835,0.0003589,2]
[314843398,1708584663384,-500.0,0.0003589,2]
[314843399,1708584663393,-500.0,0.0003589,2]
[314843400,1708584663402,-500.0,0.0003589,2]
[314843401,1708584663412,-1505.02,0.0003589,2]
[314843402,1708584663421,-500.0,0.0003589,2]
[314843403,1708584663431,-1099.31,0.0003589,2]
[314843404,1708584663440,-500.0,0.0003589,2]
[314843405,1708584663449,-1690.12,0.0003589,2]
[314843406,1708584663459,-500.0,0.0003589,2]
[314843407,1708584663468,-500.0,0.0003589,2]
[314843408,1708584663477,-2820.71,0.0003589,2]
[314843409,1708584663486,-500.0,0.0003589,2]
[314843410,1708584663495,-521.63,0.0003589,2]
[314843411,1708584663504,-500.0,0.0003589,2]
[314843412,1708584663514,-517.5259235,0.0003589,2]
[314843413,1708584663524,-500.0,0.0003589,2]
[314843414,1708584663533,-500.0,0.0003589,2]
[314843415,1708584663542,-522.50317673,0.0003589,2]
[314843416,1708584663555,-566.8,0.0003589,2]
[314843417,1708584663565,-817.61,0.0003589,2]
[314843418,1708584663574,-535.41,0.0003589,2]
[314843419,1708584663583,-500.0,0.0003589,2]
[314843420,1708584663594,-500.0,0.0003589,2]
[314843421,1708584663603,-500.0,0.0003589,2]
[314843422,1708584663613,-500.0,0.0003589,2]
[314843423,1708584663623,-507.8836511,0.0003589,2]
[314843424,1708584663634,-500.0,0.0003589,2]
[314843425,1708584663644,-500.0,0.0003589,2]
[314843426,1708584663654,-500.0,0.0003589,2]
[314843427,1708584663663,-1000.0,0.0003589,7]
[314843428,1708584663673,-3556.27,0.0003589,2]
[314843429,1708584663682,-500.0,0.0003589,2]
[314843430,1708584663692,-1866.68,0.0003589,2]
[314843431,1708584663702,-500.0,0.0003589,2]
[314843432,1708584663712,-500.0,0.0003589,2]
[314843433,1708584663721,-2749.06,0.0003589,2]
[314843434,1708584663732,-500.0,0.0003589,2]
[314843435,1708584663742,-500.0,0.0003589,2]
[314843436,1708584663752,-971.91,0.0003589,2]
[314843437,1708584663762,-1654.36,0.0003589,2]
[314843438,1708584663772,-1221.43,0.0003589,2]
[314843439,1708584663782,-500.0,0.0003589,2]
[314843440,1708584663791,-348.39058455,0.0003589,2]
[314843441,1708584663800,-541.23,0.0003589,2]
[314843442,1708584663810,-500.0,0.0003589,2]
[314843443,1708584663819,-695.79,0.0003589,2]
[314843444,1708584663829,-1232.75,0.0003589,2]
[314843445,1708584663839,-6598.41,0.0003589,2]
[314843446,1708584663848,-507.25340825,0.0003589,2]
[314843447,1708584663857,-500.0,0.0003589,2]
[314843448,1708584663867,-500.0,0.0003589,2]
[314843449,1708584663877,-500.0,0.0003589,2]
[314843450,1708584663887,-500.0,0.0003589,2]
[314843451,1708584663896,-500.0,0.0003589,2]
[314843452,1708584663906,-8064.63,0.0003589,2]
[314843453,1708584663915,-500.0,0.0003589,2]
[314843454,1708584663925,-500.0,0.0003589,2]
[314843455,1708584663937,-500.0,0.0003589,2]
[314843456,1708584663946,-616.42669988,0.0003589,2]
[314843457,1708584663957,-515.78,0.0003589,2]
[314843458,1708584663966,-500.0,0.0003589,2]
[314843459,1708584663975,-619.28,0.0003589,2]
[314843460,1708584663984,-4345.45,0.0003589,2]
[314843461,1708584663993,-1167.04,0.0003589,2]
[314843462,1708584664003,-633.35,0.0003589,2]
[314843463,1708584664014,-500.0,0.0003589,2]
[314843464,1708584664025,-500.0,0.0003589,2]
[314843465,1708584664035,-1096.28,0.0003589,2]
[314843466,1708584664045,-500.0,0.0003589,2]
[314843467,1708584664055,-5329.18,0.0003589,2]
[314843468,1708584664064,-500.0,0.0003589,2]
[314843469,1708584664073,-500.0,0.0003589,2]
[314843470,1708584664082,-500.0,0.0003589,2]
[314843471,1708584664091,-790.14,0.0003589,2]
[314843472,1708584664100,-500.0,0.0003589,2]
[314843473,1708584664111,-500.0,0.0003589,2]
[314843474,1708584664120,-541.0,0.0003589,2]
[314843475,1708584664130,-500.0,0.0003589,2]
[314843476,1708584664139,-161.85052097,0.0003589,2]
[314843477,1708584664148,-500.0,0.0003589,2]
[314843478,1708584664158,-500.0,0.0003589,2]
[314843479,1708584664167,-11191.58,0.0003589,2]
[314843480,1708584664177,-500.0,0.0003589,2]
[314843481,1708584664187,-8898.67,0.0003589,2]
[314843482,1708584664196,-500.0,0.0003589,2]
[314843483,1708584664206,-3418.74,0.0003589,2]
[314843484,1708584664215,-947.42,0.0003589,2]
[314843485,1708584664224,-500.0,0.0003589,2]
[314843486,1708584664233,-500.0,0.0003589,2]
[314843487,1708584664242,-500.0,0.0003589,2]
[314843488,1708584664252,-500.0,0.0003589,2]
[314843489,1708584664263,-500.0,0.0003589,2]
[314843490,1708584664272,-500.0,0.0003589,2]
[314843491,1708584664283,-533.39,0.0003589,2]
[314843492,1708584664293,-4602.59,0.0003589,2]
[314843493,1708584664302,-1265.43,0.0003589,2]
[314843494,1708584664311,-500.0,0.0003589,2]
[314843495,1708584664321,-7750.87,0.0003589,2]
[314843496,1708584664333,-1189.89,0.0003589,2]
[314843497,1708584664343,-744.18,0.0003589,2]
[314843498,1708584664352,-507.2433097,0.0003589,2]
[314843499,1708584664362,-507.9,0.0003589,2]
[314843500,1708584664371,-1163.73,0.0003589,2]
[314843501,1708584664380,-511.7,0.0003589,2]
[314843502,1708584664390,-500.0,0.0003589,2]
[314843503,1708584664399,-1423.89,0.0003589,2]
[314843504,1708584664408,-500.0,0.0003589,2]
[314843505,1708584664418,-527.44987899,0.0003589,2]
[314843506,1708584664427,-500.0,0.0003589,2]
[314843507,1708584664437,-2757.93,0.0003589,2]
[314843508,1708584664446,-1782.05,0.0003589,2]
[314843509,1708584664456,-500.0,0.0003589,2]
[314843510,1708584664466,-1340.85,0.0003589,2]
[314843511,1708584664475,-500.0,0.0003589,2]
[314843512,1708584664485,-500.0,0.0003589,2]
[314843513,1708584664494,-500.0,0.0003589,2]
[314843514,1708584664503,-759.32,0.0003589,2]
[314843515,1708584664513,-500.0,0.0003589,2]
[314843516,1708584664522,-1442.96,0.0003589,2]
[314843517,1708584664532,-500.0,0.0003589,2]
[314843518,1708584664541,-1851.39,0.0003589,2]
[314843519,1708584664552,-500.0,0.0003589,2]
[314843520,1708584664563,-695.48,0.0003589,2]
[314843521,1708584664573,-561.4,0.0003589,2]
[314843522,1708584664582,-231.39,0.0003589,2]
[314843523,1708584664592,-2279.15,0.0003589,2]
[314843524,1708584664602,-500.0,0.0003589,2]
[314843525,1708584664611,-500.0,0.0003589,2]
[314843526,1708584664620,-500.0,0.0003589,2]
[314843527,1708584664630,-500.0,0.0003589,2]
[314843528,1708584664639,-1336.47,0.0003589,2]
[314843529,1708584664650,-500.0,0.0003589,2]
[314843530,1708584664659,-500.0,0.0003589,2]
[314843531,1708584664669,-2904.9,0.0003589,2]
[314843532,1708584664678,-500.0,0.0003589,2]